Cogmind - Beta 11 X5 @@@ ROGUE MODE // 2021.06.23 @ 14:31:43 Player: Luigi Panache Result: Destroyed by Y-54 Guardian with Flak Gun Performance ------------- Evolutions (4) 2000 Regions Visited (9) 1800 Robots Destroyed (128) 640 Value Destroyed (3864) 3864 Prototype IDs (12) 240 Alien Tech Used (0) 0 Bonus (-1115) -1115 TOTAL SCORE: 7429 Bonus ------- High Alert Combat Kills 51 Friendly Fire -1166 Cogmind --------- Core Integrity 0/850 Matter 197/300 Energy 309/310 System Corruption 4% Temperature Cool (-132) Movement Core (250) Ox4 Location -6/Factory Parts ------- > --- POWER (1) -------- Fission Core > --- PROPULSION (4) --- (None) > --- UTILITY (8) ------ Improved Cryofiber Web Machine Analyzer Improved Targeting Computer ECM Suite > --- WEAPON (2) ------- (None) > --- INVENTORY (5) ---- Light Angular Momentum Engine Huge Storage Unit EM Pulse Cannon Peak State ------------ > --- POWER ------------ Light Nuclear Core > --- PROPULSION ------- Advanced Treads Medium Treads Wheel Compact Wheel > --- UTILITY ---------- Huge Storage Unit Machine Analyzer Improved Targeting Computer Hardened Heavy Armor Plating Improved Medium Armor Plating Medium Reactive Plating System Backup Module > --- WEAPON ----------- Precision Assault Rifle Precision Grenade Launcher > --- INVENTORY -------- Cooled Deuterium Engine Light Treads Medium Treads Wheel Wheel Wheel High-capacity Storage Unit YI-UF0's Bottomless Matter Pit Hardened Heavy Armor Plating Medium Insulated Plating Dynamic Insulation System Thief Drone Bay Particle Gun Particle Gun Cooled Pulse Rifle EM Pulse Cannon Precision Assault Rifle Precision Assault Rifle Precision Assault Rifle Advanced EMP Blaster Advanced EMP Blaster Improved Grenade Launcher [Rating: 56] Favorites ----------- Power Light Ion Engine Engine Light Ion Engine Power Core Light Nuclear Core Propulsion Light Treads Treads Light Treads Leg Aluminum Leg Wheel Wheel Hover Unit Gravmag Array Flight Unit VTOL Module Utility Improved Targeting Computer Device Improved Heat Sink Storage Huge Storage Unit Processor Improved Targeting Computer Protection Light Armor Plating Weapon Improved Medium Laser Energy Gun Improved Medium Laser Ballistic Gun Precision Assault Rifle Launcher Grenade Launcher Slashing Weapon Mining Claw Build | -11 -10 -10 -10 -9 -8 -7 -6 -6 -6 ------- Run | Scr Mat Min Exi Min Mat Fac Fac Was Fac Slots Evolved 8 | . . . . . 4 2 2 . . Power . | . . . . . . . . . . Propulsion 2 | . . . . . 1 1 . . . Utility 6 | . . . . . 3 1 2 . . Weapon . | . . . . . . . . . . Parts Attached 157 | 2 7 6 2 10 35 63 8 8 16 Power 20 | . 1 1 . 1 6 8 1 . 2 Engine 15 | . 1 1 . 1 6 4 1 . 1 Core 5 | . . . . . . 4 . . 1 Reactor . | . . . . . . . . . . Propulsion 41 | 2 . . 1 1 9 23 1 1 3 Treads 19 | 2 . . . . 6 10 1 . . Leg 3 | . . . . 1 . 2 . . . Wheel 15 | . . . 1 . 3 11 . . . Hover 3 | . . . . . . . . 1 2 Flight 1 | . . . . . . . . . 1 Utility 59 | . 4 2 1 4 13 16 5 5 9 Device 18 | . 1 . . 1 3 5 1 1 6 Storage 6 | . 1 1 1 . 1 . . 2 . Processor 9 | . . . . . 3 1 2 . 3 Hackware . | . . . . . . . . . . Protection 26 | . 2 1 . 3 6 10 2 2 . Artifact . | . . . . . . . . . . Weapon 37 | . 2 3 . 4 7 16 1 2 2 Energy Gun 13 | . 1 . . . 4 7 . . 1 Energy Cannon . | . . . . . . . . . . Ballistic Gun 9 | . 1 2 . 1 1 2 1 . 1 Ballistic Cannon . | . . . . . . . . . . Launcher 14 | . . 1 . 3 2 6 . 2 . Special Weapon . | . . . . . . . . . . Impact Weapon . | . . . . . . . . . . Slashing Weapon 1 | . . . . . . 1 . . . Piercing Weapon . | . . . . . . . . . . Special Melee Weapon . | . . . . . . . . . . Unidentified Prototypes 12 | . . 2 . 1 3 5 . . 1 Parts Lost 67 | . 4 1 . 5 15 27 2 4 9 Power 9 | . 1 . . . 3 4 1 . . Propulsion 26 | . . 1 . 1 5 13 1 1 4 Utility 18 | . 1 . . 1 6 4 . 2 4 Weapon 14 | . 2 . . 3 1 6 . 1 1 Highest Loss Streak 13 | . 3 1 . 5 8 13 1 4 4 Average Slot Usage (%) 91 | . 94 96 92 95 97 93 92 69 42 Engine 7 | . 14 14 14 14 8 2 1 4 . Core 1 | . . . . . . 4 4 . 3 Treads 13 | . 28 24 14 6 9 12 12 9 . Wheel 10 | . . . 7 14 17 14 13 9 . Device 7 | . . . . . 13 11 . 3 15 Storage 10 | . 14 20 14 14 9 7 6 4 . Processor 9 | . . . . . 12 13 19 16 10 Protection 9 | . 9 7 14 13 7 7 20 10 . Energy Gun 11 | . 24 14 14 7 11 14 . . . Ballistic Gun 4 | . 2 9 14 7 2 . 13 1 . Launcher 1 | . . 4 . 8 3 . . 8 . Naked Turns 21 | . . . . . . . . 21 . Heaviest Build 145 | 12 30 39 50 56 102 136 145 145 22 Greatest Support 80 | 40 40 40 20 16 60 80 26 26 40 Greatest Overweight (x) 10 | . . 1 3 3 3 10 5 5 4 Average Overweight (x) 2 | . . . 2 3 1 4 5 1 . Largest Inventory Capacity 25 | 8 15 15 20 20 25 25 25 25 5 Average Capacity 20 | 8 12 15 18 20 23 25 25 19 5 Most Carried 25 | 8 10 15 15 19 25 25 25 25 5 Average Carried 18 | 6 8 14 14 16 18 23 24 18 3 Final Capacity 25 | 8 15 15 20 20 25 25 25 5 5 Final Carried 25 | 7 10 15 15 15 25 25 25 5 3 Class Distribution -------------------- 55% | Mutant 44% | Scavenger-Mutant Dominant Class ---------------- Mutant | -10/Materials Mutant | -10/Mines Mutant | -10/Exiles Mutant | -9/Mines Mutant | -8/Materials Scavenger-Mutant | -7/Factory Scavenger-Mutant | -6/Factory Scavenger-Mutant | -6/Waste Mutant | -6/Factory Resources | -11 -10 -10 -10 -9 -8 -7 -6 -6 -6 ----------- Run | Scr Mat Min Exi Min Mat Fac Fac Was Fac Matter Collected 3642 | 220 78 346 250 60 1110 1069 435 . 74 Remotely . | . . . . . . . . . . Salvage Created 5742 | 117 514 272 . 113 1275 2213 733 431 74 Parts 258 | 6 25 23 . 8 63 93 35 . 5 Haulers Intercepted 6 | . . . . . 4 2 . . . Recyclers Shooed 5 | . 1 1 . . . 2 1 . . Parts Field Recycled . | . . . . . . . . . . Retrieved Matter . | . . . . . . . . . . Parts Self-Destructed . | . . . . . . . . . . Prevented . | . . . . . . . . . . Kills | -11 -10 -10 -10 -9 -8 -7 -6 -6 -6 ------- Run | Scr Mat Min Exi Min Mat Fac Fac Was Fac Combat Hostiles Destroyed 105 | . 11 7 . 21 20 30 11 2 3 Melee 1 | . . . . . . . . . 1 Guns 62 | . 9 5 . . 14 21 11 . 2 AOE 38 | . 2 2 . 21 6 5 . 2 . Classes Destroyed 15 | 2 3 1 . 1 5 2 . 1 . Worker 11 | . . 1 . 1 3 6 . . . Builder 6 | . 1 . . 1 1 3 . . . Tunneler 2 | 1 . . . . . 1 . . . Hauler 6 | . . . . . 4 2 . . . Recycler 8 | 1 1 1 . . 1 4 . . . Operator 1 | . . . . . 1 . . . . Watcher 5 | . . . . . 2 1 2 . . Swarmer 18 | . 3 5 . 4 3 . . . 3 Grunt 47 | . 8 2 . . 10 21 6 . . Duelist 2 | . . . . . . 2 . . . Sentry 13 | . . . . . 6 3 4 . . Hunter 3 | . . . . . 1 2 . . . Programmer 3 | . . . . . . 2 1 . . Compactor 2 | . . . . . . . . 2 . Assembled 17 | . . . . 17 . . . . . Best Kill Streak 18 | 2 4 3 . 18 10 6 4 2 2 Combat Bots Only 17 | . 3 3 . 17 5 5 4 2 2 Max Kills in Single Turn 5 | 1 2 2 . 5 3 2 1 1 1 Gunslinging . | . . . . . . . . . . Exploded 5 | . 1 1 . 5 2 1 . 1 . Melee 1 | . . . . . . . . . 1 Uniques/NPCs Destroyed 1 | . . 1 . . . . . . . YI-UF0 (-10/Mines) Combat | -11 -10 -10 -10 -9 -8 -7 -6 -6 -6 -------- Run | Scr Mat Min Exi Min Mat Fac Fac Was Fac Damage Taken 10113 | . 668 189 . 376 1688 3822 1152 980 1238 Core 2016 | . 86 51 . 73 311 645 91 197 562 Absorbed by Shields . | . . . . . . . . . . Core Remaining (%) 41 | 100 . . . 16 43 7 . . . Volleys Fired 386 | 3 51 29 . 15 89 126 51 8 14 Largest 2 | 2 2 2 . 1 2 2 2 2 2 Hottest 136 | 90 90 120 . 33 112 136 56 72 93 Shots Fired 691 | 6 75 54 . 15 170 235 102 16 18 Gun 637 | 6 75 52 . 1 161 222 102 . 18 Cannon . | . . . . . . . . . . Launcher 54 | . . 2 . 14 9 13 . 16 . Special . | . . . . . . . . . . Kinetic 146 | . 8 27 . 1 4 . 102 . 4 Thermal 457 | 3 36 25 . . 157 222 . . 14 Explosive 37 | . . 2 . 14 4 1 . 16 . Electromagnetic 51 | 3 31 . . . 5 12 . . . Robot Hit Streak 32 | 4 7 10 . 6 8 17 32 16 12 Robot Miss Streak 5 | . 3 3 . 2 5 4 1 . 1 Penetration Max . | . . . . . . . . . . Secondary Targets 2 | . . . . . . 1 1 . . Max Gunslinging Chain 1 | . . . . . . 1 1 . . Shots Hit Robots 512 | 4 48 40 . 11 109 180 90 14 16 Core Hits 273 | 3 22 19 . 38 55 88 34 7 7 Critical Kills 1 | . . . . . . . 1 . . Critical Parts Destroyed . | . . . . . . . . . . Critical Strikes 27 | . 6 2 . . 5 13 1 . . Burn 24 | . 4 2 . . 5 13 . . . Destroy 1 | . . . . . . . 1 . . Corrupt 2 | . 2 . . . . . . . . Melee Attacks 1 | . . . . . . 1 . . . Impact . | . . . . . . . . . . Slashing 1 | . . . . . . 1 . . . Piercing . | . . . . . . . . . . Sneak Attacks . | . . . . . . . . . . Combat Hostiles . | . . . . . . . . . . Follow-up Attacks . | . . . . . . . . . . Damage Inflicted 14605 | 64 738 570 . 1359 2500 4260 1824 2886 404 Guns 8368 | 64 605 408 . 15 1740 3325 1824 . 387 Cannons . | . . . . . . . . . . Explosions 6110 | . 133 120 . 1344 715 912 . 2886 . Melee . | . . . . . . . . . . Ramming 127 | . . 42 . . 45 23 . . 17 Kinetic 2198 | . 46 173 . 15 60 . 1824 . 80 Thermal 6022 | 26 398 235 . . 1731 3325 . . 307 Explosive 4781 | . . 120 . 1344 341 90 . 2886 . Electromagnetic 1477 | 38 294 . . . 323 822 . . . Impact . | . . . . . . . . . . Slashing . | . . . . . . . . . . Piercing . | . . . . . . . . . . Highest Corruption 5 | . . . . . 4 4 1 5 5 Average Corruption 3 | . . . . . 3 2 1 4 4 Corruption Purged 5 | . . . . . . 4 . . 1 Effects 45 | . . . . . 28 10 . 1 6 Message Errors 14 | . . . . . 9 3 . . 2 Matter Fused 10 | . . . . . 3 3 . . 4 Heat Flow Errors 7 | . . . . . 6 1 . . . Energy Discharges 5 | . . . . . 3 2 . . . Parts Rejected 1 | . . . . . 1 . . . . Data Loss (minor) 4 | . . . . . 3 1 . . . Misfires 1 | . . . . . . . . 1 . Weapon Failures 3 | . . . . . 3 . . . . Overload Shots 6 | . . . . . . 6 . . . Overflow Damage 109 | . . . . 8 26 75 . . . Projectiles . | . . . . . . . . . . Explosions 102 | . . . . 8 19 75 . . . Melee 7 | . . . . . 7 . . . . Knockbacks . | . . . . . . . . . . Impact . | . . . . . . . . . . Kinetic . | . . . . . . . . . . Secondary . | . . . . . . . . . . Self-Inflicted Damage 945 | . 71 40 . 87 125 72 . 542 8 Shots 29 | . 2 2 . 3 7 2 . 13 . Rammed 17 | . . 5 . . 5 3 . . 4 Targets Rammed 18 | . . 6 . . 5 3 . . 4 Kicked . | . . . . . . . . . . Crushed 1 | . . 1 . . . . . . . Highest Temperature 404 | 90 288 200 . 37 309 404 367 108 126 Average Temperature 106 | 48 149 81 . 20 95 110 113 64 56 Received Heat Transfer 2887 | . 177 54 . 40 558 1458 492 . 108 Effects 5 | . 2 . . . . 2 1 . . Shutdowns 3 | . . . . . . 2 1 . . Energy Bleed 1 | . 1 . . . . . . . . Interference 1 | . 1 . . . . . . . . Siege Activations . | . . . . . . . . . . Robots Corrupted . | . . . . . . . . . . Combat Hostiles . | . . . . . . . . . . Parts Fried 6 | . 1 . . . 1 4 . . . Impact Corruptions 1 | . . . . . 1 . . . . Robots Melted 4 | . . . . . . 4 . . . Combat Hostiles 4 | . . . . . . 4 . . . Parts Melted 45 | . 3 1 . . 15 26 . . . Heat Transferred 14661 | 74 1323 851 . . 4194 7775 . . 444 Parts Sabotaged . | . . . . . . . . . . Parts Stolen . | . . . . . . . . . . Parts Stripped . | . . . . . . . . . . Power Chain Reactions 7 | . 3 . . . 3 1 . . . Missiles Intercepted . | . . . . . . . . . . Alert | -11 -10 -10 -10 -9 -8 -7 -6 -6 -6 ------- Run | Scr Mat Min Exi Min Mat Fac Fac Was Fac Peak Influence 673 | 10 136 100 . 110 230 257 673 263 629 Initial 235 | . 6 48 . . 2 35 105 235 163 Average 138 | 7 66 66 . 48 86 150 246 239 419 Maximum Alert Level 2 | . . . . . 1 1 2 1 2 Low Security (%) 78 | 100 100 100 . 100 96 74 41 . 11 Level 1 16 | . . . . . 3 25 42 100 22 Level 2 5 | . . . . . . . 16 . 65 Level 3 . | . . . . . . . . . . Level 4 . | . . . . . . . . . . Level 5 . | . . . . . . . . . . High Security . | . . . . . . . . . . Max Security . | . . . . . . . . . . Squads Dispatched 19 | . 1 . . . 6 6 5 . 1 Investigation 6 | . 1 . . . 2 2 . . 1 Extermination 3 | . . . . . . 2 1 . . Reinforcement 9 | . . . . . 3 2 4 . . Assault . | . . . . . . . . . . Garrison 1 | . . . . . 1 . . . . Intercept . | . . . . . . . . . . Construction Impeded 2 | . . . . . . 1 1 . . Haulers Reinforced 1 | . . . . . . 1 . . . Cargo Convoy Interrupts 1 | . . . . . . . 1 . . Stealth | -11 -10 -10 -10 -9 -8 -7 -6 -6 -6 --------- Run | Scr Mat Min Exi Min Mat Fac Fac Was Fac Distress Signals 6 | . . . . . 3 1 1 . 1 Communications Jammed . | . . . . . . . . . . Distress Signals . | . . . . . . . . . . Times Spotted 175 | . 15 8 . 21 31 41 18 6 35 Peak Tracking Total 9 | . 4 3 . 9 5 8 4 5 8 Tactical Retreats 10 | . . . . . . 2 . . 8 Traps | -11 -10 -10 -10 -9 -8 -7 -6 -6 -6 ------- Run | Scr Mat Min Exi Min Mat Fac Fac Was Fac Traps Triggered 13 | . . . . . 2 9 1 . 1 Indirectly 3 | . . . . . . 3 . . . Trap Hack Attempts . | . . . . . . . . . . Triggered . | . . . . . . . . . . Disarmed . | . . . . . . . . . . Reprogrammed . | . . . . . . . . . . Reused . | . . . . . . . . . . Traps Extracted . | . . . . . . . . . . Installed . | . . . . . . . . . . Triggered 1 | . . . . . . . 1 . . Machines | -11 -10 -10 -10 -9 -8 -7 -6 -6 -6 ---------- Run | Scr Mat Min Exi Min Mat Fac Fac Was Fac Machines Disabled 7 | . . 3 . 1 2 1 . . . Max in Single Turn 2 | . . 2 . 1 1 1 . . . Garrison Access 2 | . . . . . 1 1 . . . Machines Sabotaged . | . . . . . . . . . . Garrisons Compromised 1 | . . . . . . . 1 . . Overloaded Fab Kills . | . . . . . . . . . . Fab Network Shutdowns . | . . . . . . . . . . Hacking | -11 -10 -10 -10 -9 -8 -7 -6 -6 -6 --------- Run | Scr Mat Min Exi Min Mat Fac Fac Was Fac Machines Accessed 26 | . 2 . 1 2 5 11 2 . 3 Terminals 16 | . 2 . . 1 2 6 2 . 3 Fabricators 2 | . . . . . . 2 . . . Repair Stations 2 | . . . . . . 2 . . . Recycling Units 2 | . . . . . 2 . . . . Scanalyzers . | . . . . . . . . . . Garrison Access 2 | . . . . . 1 1 . . . Total Hacks 57 | . 4 . 1 6 15 19 6 . 6 Successful 19 | . . . 1 3 7 5 1 . 2 Failed 38 | . 4 . . 3 8 14 5 . 4 Catastrophic 10 | . 2 . . . 1 6 1 . . Database Lockouts . | . . . . . . . . . . Manual 33 | . 4 . . 5 6 9 6 . 3 Terminals 41 | . 4 . . 5 9 11 6 . 6 Fabricators 4 | . . . . . . 4 . . . Repair Stations 3 | . . . . . . 3 . . . Recycling Units 5 | . . . . . 5 . . . . Scanalyzers . | . . . . . . . . . . Garrison Access 2 | . . . . . 1 1 . . . Terminal Hacks 10 | . . . 1 3 3 1 . . 2 Record 2 | . . . 1 . . . . . 1 Robot Analysis 1 | . . . . . . 1 . . . Open Door 1 | . . . . 1 . . . . . Branch Access Points 1 | . . . . . . . . . 1 Unreport Threat 4 | . . . . 2 2 . . . . Hauler Manifests 1 | . . . . . 1 . . . . Fabricator Hacks . | . . . . . . . . . . Repair Station Hacks 1 | . . . . . . 1 . . . Scan Component 1 | . . . . . . 1 . . . Recycling Unit Hacks 1 | . . . . . 1 . . . . Retrieve Matter 1 | . . . . . 1 . . . . Scanalyzer . | . . . . . . . . . . Garrison Access Hacks 2 | . . . . . 1 1 . . . Seal Access 2 | . . . . . 1 1 . . . Unauthorized Hacks 5 | . . . . . 2 2 1 . . Terminals 2 | . . . . . . 1 1 . . Botnet 2 | . . . . . . 1 1 . . Fabricators 1 | . . . . . . 1 . . . Haulers 1 | . . . . . . 1 . . . Repair Stations . | . . . . . . . . . . Recycling Units 2 | . . . . . 2 . . . . Tunnel 2 | . . . . . 2 . . . . Scanalyzers . | . . . . . . . . . . Garrison Access . | . . . . . . . . . . Data Cores Recovered . | . . . . . . . . . . Used . | . . . . . . . . . . Hacking Detections 20 | . 2 . . 1 3 9 2 . 3 Full Trace Events 3 | . 1 . . . . 1 . . 1 Feedback Events 1 | . . . . . . 1 . . . Corruption 1 | . . . . . . 1 . . . Feedback Blocked . | . . . . . . . . . . Robot Schematics Acquired . | . . . . . . . . . . Robots Built . | . . . . . . . . . . Matter . | . . . . . . . . . . Time . | . . . . . . . . . . Total Robot Build Rating . | . . . . . . . . . . Part Schematics Acquired . | . . . . . . . . . . Parts Built . | . . . . . . . . . . Matter . | . . . . . . . . . . Time . | . . . . . . . . . . Total Part Build Rating . | . . . . . . . . . . Parts Repaired . | . . . . . . . . . . Time . | . . . . . . . . . . Parts Recycled . | . . . . . . . . . . Recycled Matter . | . . . . . . . . . . Retrieved Matter . | . . . . . . . . . . Retrieved Components . | . . . . . . . . . . Parts Scanalyzed . | . . . . . . . . . . Part Schematics Acquired . | . . . . . . . . . . Parts Damaged . | . . . . . . . . . . Bothacking | -11 -10 -10 -10 -9 -8 -7 -6 -6 -6 ------------ Run | Scr Mat Min Exi Min Mat Fac Fac Was Fac Used RIF Installer . | . . . . . . . . . . Robots Hacked . | . . . . . . . . . . Non-combat . | . . . . . . . . . . Combat . | . . . . . . . . . . Robot Hacks Applied . | . . . . . . . . . . Relay Couplers Released . | . . . . . . . . . . Robots Rewired . | . . . . . . . . . . Allies Hacked . | . . . . . . . . . . Hacks Repelled . | . . . . . . . . . . Allies | -11 -10 -10 -10 -9 -8 -7 -6 -6 -6 -------- Run | Scr Mat Min Exi Min Mat Fac Fac Was Fac Total Allies 18 | . . . . . . . 18 . . Largest Group 15 | . . . . . . . 15 . . Highest-Rated Group 567 | . . . . . . . 567 . . Highest-Rated Ally 74 | . . . . . . . 74 . . Total Orders . | . . . . . . . . . . Ally Attacks 40 | . . . . . . . 40 . . Total Damage 942 | . . . . . . . 942 . . Kills 10 | . . . . . . . 10 . . Allies Corrupted . | . . . . . . . . . . Allies Melted . | . . . . . . . . . . Intel | -11 -10 -10 -10 -9 -8 -7 -6 -6 -6 ------- Run | Scr Mat Min Exi Min Mat Fac Fac Was Fac Robot Analysis Total 1 | . . . . . . 1 . . . Derelict Logs Recovered 3 | . . 2 . 1 . . . . . Drone Launches . | . . . . . . . . . . Drone Recoveries . | . . . . . . . . . . Exploration | -11 -10 -10 -10 -9 -8 -7 -6 -6 -6 ------------- Run | Scr Mat Min Exi Min Mat Fac Fac Was Fac Turns Passed 8218 | 41 552 1109 545 297 1762 2519 942 96 355 Spaces Moved 4013 | 18 245 569 285 174 541 1198 341 69 573 Core 101 | . . . . . . . . 42 59 Treads 1141 | 16 245 569 98 . 183 30 . . . Legs 3 | 2 . . . . . 1 . . . Wheels 2251 | . . . 187 174 358 1167 341 24 . Hover 489 | . . . . . . . . 3 486 Flight 28 | . . . . . . . . . 28 Fastest Speed 35 | 120 160 160 145 145 101 123 165 40 35 Average Speed 147 | 155 160 176 190 145 162 157 165 89 50 Slowest Speed 660 | 160 160 260 360 145 360 660 165 165 250 Overloaded Moves . | . . . . . . . . . . Propulsion Burnouts . | . . . . . . . . . . Robots Hopped 4 | . . . . . . . . . 4 Cave-ins Triggered . | . . . . . . . . . . Exploration Rate (%) 39 | 2 36 97 56 37 37 35 11 69 15 Regions Visited 9 Branch Regions 3 Pre-discovered Areas 5 | . . 2 1 . 2 . . . . Known Exits Taken 1 | . . . . . . 1 . . . Unknown Exits Taken 6 | 1 1 1 1 1 1 . . . . Scrap Searched 2 | . . 1 . 1 . . . . . Spaces Dug . | . . . . . . . . . . Terrain Destroyed 231 | . 12 27 . 70 75 1 . 46 . Melee . | . . . . . . . . . . Projectile . | . . . . . . . . . . AOE 231 | . 12 27 . 70 75 1 . 46 . Terrain Rammed . | . . . . . . . . . . Walls Destroyed . | . . . . . . . . . . Machines Disabled . | . . . . . . . . . . Actions | -11 -10 -10 -10 -9 -8 -7 -6 -6 -6 --------- Run | Scr Mat Min Exi Min Mat Fac Fac Was Fac Total 5624 | 27 331 623 288 202 1241 1596 619 86 611 Wait 912 | . 22 5 . . 545 121 213 . 6 Move 3998 | 17 244 568 284 173 540 1197 341 68 566 Hop 3 | . . . . . . . . . 3 Pick Up 75 | 2 5 6 1 2 21 33 3 1 1 Fast Attach 55 | . 4 . . 3 10 22 2 2 12 Attach 55 | 2 2 . 1 4 14 24 2 2 4 Detach 6 | 2 . . . 1 2 . . . 1 Swap 47 | . 1 6 1 3 11 17 4 4 . Drop 50 | 1 2 3 1 1 4 34 3 1 . Fire 386 | 3 51 29 . 15 89 126 51 8 14 Melee 1 | . . . . . . 1 . . . Ram 10 | . . . . . 3 3 . . 4 Kick . | . . . . . . . . . . Crush 8 | . . 6 . . 2 . . . . Escape Stasis 16 | . . . . . . 16 . . . Rewire 2 | . . . . . . 2 . . . Trap . | . . . . . . . . . . Miscellaneous . | . . . . . . . . . . Route ------- -11/Scrapyard -10/Materials (discovered 2 exits: [*Mat] / [*Min]) -10/Mines (discovered 3 exits: [*Mat x2] / *Exi) -10/Exiles -9/Mines -8/Materials -7/Factory (discovered 2 exits: *Fac x2) -6/Factory (discovered 2 exits: [*Fac] / *Low) -6/Waste -6/Factory (discovered 2 exits: *Low x2) History --------- Turn | Location | Event 1 | -11/Scrapyard | Discovered new exit (range 2) 42 | -11/Scrapyard | Entered Materials 233 | -10/Materials | Discovered new exit (range 6) 313 | -10/Materials | Build established: Mutant 512 | -10/Materials | Lost 3 parts (1p1u1w) 532 | -10/Materials | Discovered new exit (range 16) 594 | -10/Materials | Entered Mines 615 | -10/Mines | Learned Materials non-interactive machine intel 696 | -10/Mines | YI-UF0 nonchalantly dropped a Grenade Launcher on the ground 705 | -10/Mines | Destroyed YI-UF0 717 | -10/Mines | Found Prototype Launcher 731 | -10/Mines | Found Prototype Storage 732 | -10/Mines | Identified YI-UF0's Bottomless Matter Pit 734 | -10/Mines | Identified YI-UF0's Doublenader 927 | -10/Mines | Discovered new exit (range 8) 962 | -10/Mines | Learned location of Mines (-9) 1163 | -10/Mines | A weapon hastily lodged in a ceiling crevice suddenly fell to the ground 1297 | -10/Mines | Received a Rocket Launcher from a helpful Derelict 1297 | -10/Mines | Discovered new exit (range 13) 1418 | -10/Mines | Learned location of Storage (-9) 1458 | -10/Mines | Core integrity fell below 50% 1687 | -10/Mines | Deemed a non-threat by the Exiles lab entrance 1690 | -10/Mines | Discovered new exit (range 5) 1703 | -10/Mines | Entered Exiles 1774 | -10/Exiles | Met 8R-AWN 1813 | -10/Exiles | Met EX-HEX 1977 | -10/Exiles | Met EX-DEC 2002 | -10/Exiles | Learned location of Zion (-6) 2237 | -10/Exiles | Discovered new exit (range 10) 2248 | -10/Exiles | Entered Mines 2258 | -9/Mines | Met a Derelict bent on vengeance 2312 | -9/Mines | Found the Drone Emporium 2320 | -9/Mines | Found Prototype Device 2320 | -9/Mines | Identified Thief Drone Bay 2374 | -9/Mines | Assembled infested the area 2376 | -9/Mines | Learned Materials stockpile data 2397 | -9/Mines | Core integrity fell below 20% 2425 | -9/Mines | Lost 5 parts (1n1u3w) 2431 | -9/Mines | Destroyed 17 combat bots 2526 | -9/Mines | Discovered new exit (range 9) 2545 | -9/Mines | Entered Materials 2545 | -8/Materials | Evolved 4 slots: Propulsion x1, Utility x3 2547 | -8/Materials | Loaded intel: 28 non-interactive machine locations 3054 | -8/Materials | Garrison activated, responded to threat 3637 | -8/Materials | Lost 3 parts (1n2u) 3785 | -8/Materials | Lost 8 parts (2p3n2u1w) 3887 | -8/Materials | Core integrity fell below 50% 4015 | -8/Materials | Build established: Scavenger-Mutant 4213 | -8/Materials | Discovered new exit (range 10) 4307 | -8/Materials | Entered Factory 4307 | -7/Factory | Evolved 2 slots: Propulsion x1, Utility x1 4429 | -7/Factory | Core integrity fell below 50% 4450 | -7/Factory | Lost 13 parts (3p4n2u4w) 4991 | -7/Factory | Discovered new exit (range 16) 5054 | -7/Factory | Identified exit to Factory 5169 | -7/Factory | Lost 3 parts (3n) 5267 | -7/Factory | Discovered exit to Factory (range 4) 5763 | -7/Factory | Core integrity fell below 20% 5816 | -7/Factory | Lost 6 parts (3n1u2w) 6328 | -7/Factory | Found Powered Armor 6826 | -7/Factory | Entered another Factory area 6826 | -6/Factory | Evolved 2 slots: Utility x2 7023 | -6/Factory | Discovered new exit (range 5) 7058 | -6/Factory | Discovered new exit (range 6) 7616 | -6/Factory | Cargo convoy interrupted 7768 | -6/Factory | Sucked down chute 7768 | -6/Factory | Entered Waste 7783 | -6/Waste | EMP discharged 7784 | -6/Waste | Spotted C-40 Crusher 7812 | -6/Waste | Spotted C-40 Crusher 7814 | -6/Waste | Spotted C-40 Crusher 7820 | -6/Waste | Spotted C-40 Crusher 7820 | -6/Waste | Spotted C-40 Crusher 7822 | -6/Waste | Crushed by Compactor (1 part destroyed, 1 dropped) 7824 | -6/Waste | Destroyed C-40 Crusher 7830 | -6/Waste | Destroyed C-40 Crusher 7830 | -6/Waste | Spotted C-40 Crusher 7834 | -6/Waste | Crushed by Compactor (0 parts destroyed, 1 dropped) 7834 | -6/Waste | Crushed by Compactor (0 parts destroyed, 1 dropped) 7837 | -6/Waste | Crushed by Compactor (0 parts destroyed, 2 dropped) 7840 | -6/Waste | Crushed by Compactor (1 part destroyed) 7841 | -6/Waste | Released all parts (8) 7853 | -6/Waste | Discovered new exit (range 16) 7864 | -6/Waste | Entered Factory 7871 | -6/Factory | Lost 4 parts (1n2u1w) 7949 | -6/Factory | Identified exit to Lower Caves 7960 | -6/Factory | Core integrity fell below 50% 8033 | -6/Factory | Core integrity fell below 20% 8133 | -6/Factory | Build established: Mutant 8219 | -6/Factory | Destroyed by Y-54 Guardian with Flak Gun Last Messages --------------- 08142_ A-15 Conveyor suffers critical hit (Destroy). 08147_ Adv. Sensor Array destroyed. 08157_ Slammed into K-01 Serf. 08157_ Imp. Targeting Computer destroyed. 08166_ =&WVXR%AW6DQNJJCZDM3Y&:BL3LA8KNY 08166_ K-01 Serf cleans the Nuclear Reactor. 08171_ Connecting with Terminal... 08171_ K-01 Serf cleans the Nuclear Reactor. 08179_ U-05 Engineer lays Concrete. 08188_ Focal Shield destroyed. 08192_ System corrupted: Matter fused (-8). 08197_ Gravmag Array destroyed. 08204_ Acquired Machine Analyzer. 08207_ Acquired Imp. Cryofiber Web. 08208_ TI23UMIBSP5FWWEESEL I#QKRWT6IQF8 08210_ Slammed into S-27 Virus. 08210_ Destabilizing: Core damaged (-25). 08211_ Slammed into S-27 Virus. 08216_ Adv. Terrain Scanner destroyed. 08216_ Gravmag Array destroyed. Map ----- +----------------------------------------------------+ | ?????????????????????????????????????????????????? | | ?????????????????????????????????????????????????? | | ?????????????????????????????????????????????????? | | ?????????????????????????????????????????????????? | | ?????????????????????????????????????????????????? | | ?????????????????????????????????????????????????? | | ?????????????????????????????????????????????????? | | ?????#???????????????????????????????????????????? | | ?????????????????????????????????????????????????? | | ?????????????????????????#???????????????????????? | | ?????#????#??????????????????????????????????????? | | ???????????#??????????"?"?"?"?"??????????????????? | | ??????????????????????"?" "?"?"??????????????????? | | ??????#????##########?"?" "?"?"??????????????????? | | ???????????# ! #?"?"?"?"?"??????????????????? | | ???????????# #?"?"?"?"?"??????????????????? | | ???????????# #?"?"?"?"?"??????????????????? | | ???????????# """#?"?"?"?"?"??????????????????? | | ???????????# """#?"?"?"?"?"??????????????????? | | ???????????# """#?"?"?"?"?"??????????????????? | | ???????????# ""#????????????????????????????? | | ???????????# ""#????????????????????????????? | | ???????????# #??###+###???????????????????? | | ################+####### #???#???????????????? | | Y #####???????????????? | | s @> +???????????????? | | #####???????????????? | | #+##############+####### #???????????????????? | | # ??????#?????????????## ##???????????????????? | | # ????????????????????# #????????????????????? | | # ????????????????????# ???????????????????? | | # ???????????????????? ?????????????????? | | # !????????"""""""????# ????????????????? | | # !????????"""""""????##########???????????????? | | # ???????"""""""?????????????????????????????? | | # ???????"""""""?????????????????????????????? | | # ??????????????????????????????????????????? | | ? ??????????????????????????????????????????? | | ? "?????????????????????????????????????????? | | ? "?????????????????????????????????????????? | | ? ???????????????????????????????????????????? | | ? ?????????????????????????? ???? ?????????????? | | ?????????????????????????????????????????????????? | | ?????????????????????????????????????????????????? | | ?????????????????????????????????????????????????? | | ?????????????????????????????????????????????????? | | #????????????????????????????????????????????????? | | ?????????????????????????????????????????????????? | | ?????????????????????????????????????????????????? | | ?????????????????????????????????????????????????? | +----------------------------------------------------+ Best States ------------- Heat Dissipation 48 Coolant Potential 65 Energy Generation 18 Energy Capacity 310 Matter Stores 440 Matter Capacity 1800 Sight Range 16 Robot Scan Range 16 Terrain Scan Range 20 Terrain Scan Density 110 ECM Strength 1 Base Temperature (-) 150 EM Shielding 2 Armor Coverage 1050 Resistance: KI 30 Resistance: EM 20 Evasion (%) 63 Targeting Accuracy 12 Armor Integrity Analysis 20 Recoil Reduction 4 Item Schematics ----------------- None Robot Schematics ------------------ None Fabricated ------------ Nothing Alien Tech Used ----------------- None Achievements -------------- None Challenges ------------ None Game ------ Seed MakeshiftSmallStripper Manual? 0 Play Time 01:05:27 Cumulative 389.1 hours Start 2021.06.21 @ 12:04:09 End 2021.06.23 @ 14:31:43 Sessions 5 Manual Loads 0 Difficulty Rogue Special Mode None Game No. 370 Rogue 155 Adventurer 112 Explorer 103 Win Type - Total 27 Types 19/0/5/2/0/0/0/1/0 Lore% 85 Gallery% 91 Achievement% 74 Wizard Run 0 Options --------- ASCII 1 Keyboard 0 Movement Numpad Keybinds 0 Fullscreen 2 Font 18/TerminusBold Map View 76x50 Tactical HUD 1 Map Filters NONE Filters NONE Steam 1 RUN: 3268c588-ffed-4d6e-8fa6-1cb66b503e37